bitfinex/quotes_BTCUSD_20251219
["timestamp","ask_amount","ask_price","bid_price","bid_amount"]
[1766179550065,0.00578795,88127.0,88106.0,0.41566]
[1766179550267,0.01419501,88126.0,88101.0,0.41566]
[1766179550600,0.01134893,88114.0,88100.0,0.77442922]
[1766179550789,0.31977,88113.0,88101.0,0.0113506]
[1766179550992,0.00568,88113.0,88104.0,0.01135022]
[1766179551168,0.01134751,88125.0,88104.0,0.01135022]
[1766179551169,0.00568,88115.0,88104.0,0.88968]
[1766179551524,0.00568,88115.0,88106.0,0.88968]
[1766179552315,0.31977,88111.0,88100.0,0.01135073]
[1766179552682,0.31977,88111.0,88101.0,0.0113506]
[1766179553163,0.31977,88111.0,88095.0,0.48537138]
[1766179553332,0.31977,88111.0,88098.0,0.01135099]
[1766179553552,0.31977,88111.0,88097.0,0.01135112]
[1766179553738,0.31977,88111.0,88096.0,0.88968]
[1766179554096,0.31977,88105.0,88091.0,0.00568]
[1766179554337,0.32545,88104.0,88091.0,0.00568]
[1766179554747,0.32545,88104.0,88088.0,0.41566]
[1766179554950,0.01135125,88096.0,88082.0,0.4611]
[1766179555181,0.00568,88097.0,88083.0,0.00568]
[1766179555365,0.33680112,88097.0,88082.0,0.41566]
[1766179555539,0.31977,88094.0,88079.0,0.00568]
[1766179555721,0.31977,88094.0,88079.0,0.42134]
[1766179555925,0.31977,88094.0,88041.0,0.08140787]
[1766179555926,0.33112176,88092.0,88074.0,0.47402]
[1766179556119,0.33112176,88092.0,88074.0,0.47438044]
[1766179556120,0.00568,88091.0,88074.0,0.47438044]
[1766179556350,0.05676302,88086.0,88074.0,0.00036044]
[1766179556550,0.31977,88079.0,88074.0,4.4e-07]
[1766179556843,0.00568,88085.0,88070.0,0.0004]
[1766179556844,0.01135395,88075.0,88070.0,4.4e-07]
[1766179557076,0.31901,88076.0,88060.0,1.26548511]
[1766179557278,0.01135589,88060.0,88044.0,0.47402]
[1766179557452,0.26668,88059.0,88044.0,6.55e-05]
[1766179557634,0.26668,88059.0,88039.0,0.0113586]
[1766179557635,0.26049,88052.0,88037.0,0.00321834]
[1766179557837,0.01361061,88049.0,88037.0,0.00321834]
[1766179558710,0.01361061,88049.0,88040.0,0.01135847]
[1766179558891,0.01361061,88049.0,88041.0,0.01135834]
[1766179559329,0.00572,88051.0,88042.0,0.01135821]
[1766179559545,0.01361061,88057.0,88048.0,0.01135744]
[1766179559686,0.00572,88056.0,88042.0,0.05679067]
[1766179559886,0.00572,88056.0,88044.0,0.01135795]
[1766179560133,0.00572,88056.0,88046.0,0.01135769]
[1766179560290,0.00572,88056.0,88048.0,0.01135744]
[1766179560503,0.00572,88056.0,88046.0,0.01135769]
[1766179560710,0.00572,88056.0,88041.0,0.48537834]
[1766179560711,0.04544,88067.0,88060.0,0.01135589]
[1766179560942,0.00572,88066.0,88060.0,0.88968]
[1766179561144,0.00572,88066.0,88057.0,0.01135628]
[1766179561340,0.00572,88066.0,88058.0,0.01135615]
[1766179561760,0.30748,88062.0,88044.0,0.00572]
[1766179561969,0.30748,88055.0,88037.0,0.89289834]
[1766179562160,0.00572,88054.0,88043.0,0.01135808]
[1766179562354,0.00572,88054.0,88041.0,0.01135834]
[1766179562559,0.00572,88054.0,88043.0,0.01135808]
[1766179562755,0.00572,88054.0,88046.0,0.01135769]
[1766179563112,0.00572,88054.0,88045.0,0.01135782]
[1766179563850,0.00572,88054.0,88044.0,0.01135795]
[1766179564054,0.00572,88054.0,88041.0,0.47402]
[1766179564255,0.00572,88054.0,88039.0,0.0113586]
[1766179564466,0.00572,88054.0,88040.0,0.01135847]
[1766179564661,0.00572,88054.0,88038.0,0.01135873]
[1766179564859,0.00572,88054.0,88036.0,0.00572]
[1766179565069,0.30748,88052.0,88036.0,0.00572]
[1766179565290,0.30748,88052.0,88037.0,0.0145772]
[1766179565521,0.30748,88052.0,88040.0,0.01135847]
[1766179565739,0.30748,88052.0,88041.0,0.01135834]
[1766179565947,0.30748,88052.0,88042.0,0.01135821]
[1766179566166,0.00572,88054.0,88044.0,0.01135795]
[1766179566371,0.00572,88054.0,88043.0,0.01135808]
[1766179566659,0.00572,88054.0,88044.0,0.01135795]
[1766179566860,0.00572,88054.0,88046.0,0.01135769]
[1766179567243,0.00572,88054.0,88049.0,0.01135731]
[1766179567424,0.00572,88054.0,88048.0,0.01135744]
[1766179567641,0.00572,88054.0,88047.0,0.01135757]
[1766179567845,0.00572,88054.0,88048.0,0.01135744]
[1766179568559,0.00572,88054.0,88047.0,0.01135757]
[1766179568737,0.00572,88054.0,88046.0,0.01135769]
[1766179568938,0.00572,88054.0,88043.0,0.06814809]
[1766179568939,0.00572,88054.0,88045.0,0.01135782]
[1766179569121,0.00572,88054.0,88046.0,0.01135769]
[1766179569348,0.00572,88054.0,88040.0,0.01135847]
[1766179569767,0.00572,88054.0,88044.0,0.01135795]
[1766179569971,0.00572,88054.0,88043.0,0.01135808]
[1766179570196,0.00572,88054.0,88045.0,0.01135782]
[1766179570427,0.00572,88054.0,88047.0,0.01135757]
[1766179570589,0.00572,88054.0,88046.0,0.01135769]
[1766179571042,0.25448,88062.0,88046.0,0.06814607]
[1766179571178,0.00572,88061.0,88050.0,0.01135718]
[1766179571388,0.01361061,88056.0,88050.0,0.01135718]
[1766179571722,0.00572,88055.0,88050.0,0.01135718]
[1766179572052,0.00572,88055.0,88048.0,0.01135744]
[1766179572239,0.00572,88055.0,88050.0,0.01135718]
[1766179572447,0.00572,88055.0,88049.0,0.01135731]
[1766179572592,0.00572,88054.0,88049.0,0.01135731]
[1766179573086,0.00572,88054.0,88050.0,0.01135718]
[1766179574007,0.00010793,88067.0,88057.0,0.05678136]
[1766179574219,0.00572,88066.0,88057.0,0.01135628]
[1766179574386,0.00572,88066.0,88058.0,0.01135615]
[1766179574798,0.00572,88066.0,88057.0,0.01135628]
[1766179574997,0.00572,88066.0,88057.0,0.06813741]
[1766179575401,0.00572,88066.0,88055.0,0.06813867]
[1766179575580,0.00572,88066.0,88059.0,0.01135602]
[1766179576522,0.00572,88066.0,88053.0,0.91350679]
[1766179576743,0.00572,88066.0,88056.0,0.0113564]
[1766179577292,0.00572,88066.0,88058.0,0.01135615]
[1766179577498,0.00572,88065.0,88060.0,0.01135589]
[1766179577699,0.00572,88064.0,88060.0,0.01135589]
[1766179577953,0.00572,88064.0,88057.0,0.44097628]
[1766179578519,0.00572,88064.0,88060.0,0.01135589]
[1766179579323,0.00572,88064.0,88061.0,0.01135576]
[1766179579683,0.00572,88064.0,88059.0,0.01135602]
[1766179579823,0.00572,88064.0,88060.0,0.01135589]
[1766179580209,0.00572,88064.0,88059.0,0.01135602]
[1766179580408,0.00572,88064.0,88057.0,0.46857]
[1766179580728,0.00572,88064.0,88052.0,0.41534692]
[1766179580927,0.00572,88064.0,88053.0,0.01135679]
[1766179581352,0.00572,88064.0,88054.0,0.01135666]
[1766179581953,0.00572,88064.0,88053.0,0.01135679]
[1766179582322,0.00572,88064.0,88052.0,0.41534692]
[1766179582562,0.00572,88064.0,88053.0,0.01135679]
[1766179582962,0.00572,88064.0,88054.0,0.01135666]
[1766179583164,0.00572,88064.0,88053.0,0.01135679]
[1766179583320,0.00572,88064.0,88054.0,0.01135666]
[1766179583522,0.00572,88064.0,88053.0,0.01135679]
[1766179583742,0.00572,88064.0,88058.0,0.01135615]
[1766179583945,0.00572,88064.0,88055.0,0.47212922]
[1766179584140,0.00572,88064.0,88057.0,0.01135628]
[1766179584410,0.00572,88064.0,88058.0,0.01135615]
[1766179584743,0.00572,88064.0,88059.0,0.01135602]
[1766179584954,0.00572,88064.0,88060.0,0.01135589]
[1766179585183,0.00572,88064.0,88059.0,0.01135602]
[1766179585342,0.00572,88064.0,88058.0,0.40399]
[1766179585957,0.00572,88064.0,88060.0,0.01135589]
[1766179586363,0.00572,88064.0,88059.0,0.01135602]
[1766179586777,0.00572,88064.0,88058.0,0.41534615]
[1766179586976,0.00572,88064.0,88050.0,0.06814305]
[1766179587193,0.00572,88064.0,88049.0,0.40971]
[1766179587194,0.00572,88064.0,88056.0,0.0113564]
[1766179587406,0.05683408,88074.0,88049.0,0.00572]
[1766179587407,0.02279944,88072.0,88065.0,0.41534524]
[1766179587643,0.00572,88071.0,88061.0,0.01135576]
[1766179588087,0.00572,88071.0,88062.0,0.01135563]
[1766179588518,0.00572,88071.0,88063.0,0.0113555]
[1766179588720,0.00572,88071.0,88065.0,0.01135524]
[1766179590132,0.00572,88071.0,88066.0,0.01135512]
[1766179590457,0.00572,88071.0,88070.0,0.4153446]
[1766179590648,0.03028372,88089.0,88079.0,0.06812059]
[1766179590848,0.00572,88088.0,88080.0,0.01135331]
[1766179591002,0.00572,88088.0,88080.0,0.41534331]
[1766179591195,0.00572,88088.0,88082.0,0.47992305]
[1766179591393,0.00572,88088.0,88080.0,0.01135331]
[1766179591599,0.00572,88088.0,88078.0,0.01135357]
[1766179591846,0.00572,88088.0,88080.0,0.01135331]
[1766179592201,0.00572,88088.0,88081.0,0.46857]
[1766179592607,0.31892,88095.0,88081.0,0.46857]
[1766179592832,0.00572,88094.0,88081.0,0.46857]
[1766179593035,0.31892,88095.0,88082.0,0.41534305]
[1766179593243,0.00572,88094.0,88087.0,0.01135241]
[1766179593469,0.00572,88093.0,88090.0,0.01135202]
[1766179593671,0.56119,88111.0,88095.0,0.01135138]
[1766179593872,0.02495928,88116.0,88095.0,0.01135138]
[1766179593873,0.04548,88109.0,88103.0,0.01135035]
[1766179594089,0.00572,88108.0,88103.0,0.01135035]
[1766179594226,0.00572,88108.0,88100.0,0.90153]
[1766179594565,0.00572,88108.0,88100.0,0.91288073]
[1766179594741,0.00572,88108.0,88102.0,0.01135048]
[1766179595310,0.00572,88108.0,88103.0,0.01135035]
[1766179595704,0.00572,88108.0,88101.0,0.0113506]
[1766179595885,0.00572,88108.0,88104.0,0.01135022]
[1766179596912,0.00572,88108.0,88105.0,0.01135009]
[1766179597091,0.00572,88114.0,88110.0,0.06809651]
[1766179597320,0.00572,88114.0,88106.0,0.01134996]
[1766179597503,0.00572,88114.0,88107.0,0.01134983]
[1766179597703,0.00572,88114.0,88106.0,0.41969996]
[1766179598857,0.00572,88114.0,88106.0,0.40835]
[1766179602837,0.00572,88114.0,88105.0,0.49754]
[1766179603521,0.00572,88114.0,88100.0,0.40835]
[1766179604545,0.00572,88114.0,88102.0,0.40835]
[1766179605027,0.00572,88114.0,88103.0,0.49754]
[1766179607623,0.00572,88114.0,88104.0,0.01135022]
[1766179607822,0.00572,88114.0,88103.0,0.49754]
[1766179608088,0.00572,88114.0,88103.0,0.50889035]
[1766179609846,0.00572,88114.0,88104.0,0.01135022]
[1766179610603,0.00572,88114.0,88103.0,0.50889035]
[1766179611772,0.00572,88114.0,88103.0,0.49754]
[1766179612857,0.00572,88114.0,88103.0,0.50889035]
[1766179613080,0.00572,88114.0,88103.0,0.49754]
[1766179613954,0.00572,88114.0,88105.0,0.40835]
[1766179614110,0.23071,88113.0,88098.0,0.00572]
[1766179614268,0.31892,88109.0,88098.0,0.01707099]
[1766179614471,0.31892,88109.0,88099.0,0.01135086]
[1766179614684,0.31892,88109.0,88098.0,0.42542099]
[1766179614894,0.31892,88109.0,88099.0,0.41970086]
[1766179615085,0.31892,88109.0,88100.0,0.01135073]
[1766179615905,0.31892,88109.0,88099.0,0.91724086]
[1766179616112,0.31892,88109.0,88100.0,0.01135073]
[1766179616327,0.31892,88109.0,88099.0,0.91724086]
[1766179617266,0.32464,88114.0,88100.0,0.40835]
[1766179618367,0.32464,88114.0,88100.0,0.41970073]
[1766179618742,0.32464,88114.0,88101.0,0.0113506]
[1766179619213,0.32464,88114.0,88100.0,0.41970073]
[1766179619409,0.32464,88114.0,88101.0,0.0113506]
[1766179620223,0.32464,88114.0,88100.0,0.41970073]
[1766179620684,0.32464,88114.0,88100.0,0.40835]
[1766179621166,0.22693,88127.0,88112.0,0.90589]
[1766179621369,0.01134687,88130.0,88112.0,0.90589]
[1766179621370,0.31892,88125.0,88112.0,0.91723919]
[1766179621569,0.31892,88124.0,88112.0,0.91723919]
[1766179621774,0.31892,88123.0,88112.0,0.49754]
[1766179623266,0.04544,88131.0,88120.0,0.01134816]
[1766179623476,0.00568,88130.0,88117.0,0.40835]
[1766179623682,0.00568,88130.0,88119.0,0.01134829]
[1766179623999,0.02445007,88133.0,88123.0,0.49754]
[1766179624199,0.00568,88132.0,88126.0,0.88434]
[1766179627431,0.00568,88132.0,88126.0,0.89568738]
[1766179627636,7.1e-07,88132.0,88131.0,0.88434]
[1766179627846,7.1e-07,88138.0,88135.0,0.01134623]
[1766179628048,0.00568,88139.0,88135.0,0.88434]
[1766179628799,0.00568,88139.0,88135.0,0.46213]
[1766179629347,0.00568,88139.0,88126.0,0.01134738]
[1766179629545,0.34211,88139.0,88126.0,0.01145554]
[1766179629918,0.34211,88139.0,88126.0,0.00010816]
[1766179630115,0.34211,88139.0,88126.0,0.01145554]
[1766179630315,0.34211,88139.0,88126.0,0.00010816]
[1766179630525,0.33643,88138.0,88126.0,0.00010816]
[1766179630724,0.01702571,88139.0,88114.0,0.46213]
[1766179630725,0.22423,88130.0,88114.0,0.46213]
[1766179630931,0.33632,88126.0,88114.0,0.00568]
[1766179631356,0.33632,88126.0,88107.0,0.46213]
[1766179631357,0.05673823,88124.0,88107.0,0.46213]
[1766179631558,0.33632,88116.0,88102.0,0.01703048]
[1766179631788,0.342,88116.0,88102.0,0.01703048]
[1766179631954,0.342,88116.0,88103.0,0.01135035]
[1766179632410,0.342,88116.0,88104.0,0.01135022]
[1766179632553,0.342,88116.0,88106.0,0.01134996]
[1766179632956,0.342,88116.0,88102.0,0.07378278]
[1766179632957,0.2232,88115.0,88102.0,0.00568]
[1766179633260,0.33632,88114.0,88101.0,0.00568]
[1766179636043,0.33632,88114.0,88102.0,0.01135048]
[1766179636406,0.33632,88114.0,88101.0,0.0170306]
[1766179636608,0.33632,88114.0,88102.0,0.01135048]
[1766179637407,0.33632,88114.0,88101.0,0.0170306]
[1766179637611,0.33632,88114.0,88102.0,0.01135048]
[1766179637810,0.33632,88114.0,88101.0,0.0170306]
[1766179638410,0.33632,88114.0,88104.0,0.01135022]
[1766179638609,0.33632,88114.0,88103.0,0.01135035]
[1766179639154,0.33632,88114.0,88105.0,0.01135009]
[1766179639499,0.33632,88114.0,88104.0,0.01135022]
[1766179639812,0.33632,88114.0,88102.0,0.42221]
[1766179640667,0.33632,88114.0,88102.0,0.43356048]
[1766179640803,0.33632,88114.0,88102.0,0.42221]
[1766179642345,0.33632,88114.0,88103.0,0.01135035]
[1766179642543,0.00568,88116.0,88106.0,0.01134996]
[1766179642745,0.00568,88116.0,88108.0,0.0113497]
[1766179643548,0.00568,88116.0,88111.0,0.01134932]
[1766179643750,0.00568,88116.0,88111.0,0.41725932]
[1766179644327,0.33632,88126.0,88112.0,0.88504919]
[1766179644541,5.315e-05,88130.0,88067.0,0.0116736]
[1766179644542,0.00568,88125.0,88121.0,0.40591]
[1766179644712,5.315e-05,88130.0,88119.0,0.01134829]
[1766179644713,0.00568,88124.0,88120.0,0.46779]
[1766179644871,0.00568,88123.0,88120.0,0.46779]
[1766179645905,0.00568,88123.0,88120.0,0.8737]
[1766179646796,0.00568,88124.0,88120.0,0.8737]
[1766179647390,0.00568,88124.0,88120.0,0.46779]
[1766179647806,0.21514,88123.0,88109.0,0.46779]
[1766179648080,0.342,88120.0,88107.0,0.00568]
[1766179648283,0.55714,88120.0,88104.0,0.01135022]
[1766179648494,0.342,88118.0,88106.0,0.00568]
[1766179648639,0.35334841,88118.0,88106.0,0.00568]
[1766179648824,0.342,88118.0,88106.0,0.00568]
[1766179650949,0.00568,88117.0,88106.0,0.00568]
[1766179651960,0.00568,88117.0,88106.0,0.01702996]
[1766179652354,0.00568,88117.0,88107.0,0.01134983]
[1766179653041,0.00568,88117.0,88106.0,0.01702996]
[1766179653960,0.00568,88117.0,88106.0,0.89072996]
[1766179654139,0.00568,88117.0,88107.0,0.01134983]
[1766179654349,0.00568,88117.0,88106.0,0.89072996]
[1766179654549,0.00568,88117.0,88106.0,0.88504996]
[1766179655800,0.00568,88117.0,88107.0,0.01134983]
[1766179656702,0.00568,88117.0,88109.0,0.01134957]
[1766179656893,0.00568,88117.0,88111.0,0.4082]
[1766179657903,0.00568,88117.0,88110.0,0.49652]
[1766179659060,0.00568,88117.0,88107.0,0.4082]
[1766179660983,0.00568,88117.0,88108.0,0.0113497]
[1766179661201,0.00568,88117.0,88107.0,0.41954983]
[1766179661376,0.00568,88117.0,88107.0,0.4082]
[1766179661699,0.00568,88117.0,88108.0,0.0113497]
[1766179663599,0.00568,88117.0,88108.0,0.4195497]
[1766179663801,0.00568,88117.0,88108.0,0.4082]
[1766179667125,0.00568,88117.0,88105.0,0.00568]
[1766179667291,0.00568,88117.0,88105.0,0.41388]
[1766179668577,0.20434,88116.0,88105.0,0.00568]
[1766179668875,0.342,88115.0,88105.0,0.00568]
[1766179670381,0.342,88115.0,88097.0,0.05675554]
[1766179670524,0.20329,88110.0,88097.0,0.00568]
[1766179670720,0.34768,88109.0,88095.0,0.57030825]
[1766179671212,0.34768,88109.0,88097.0,0.01135112]
[1766179671785,0.34768,88109.0,88098.0,0.01135099]
[1766179672627,0.34768,88109.0,88096.0,0.01135125]
[1766179672774,0.34768,88109.0,88098.0,0.01135099]
[1766179672971,0.34768,88109.0,88097.0,0.01135112]
[1766179673465,0.342,88107.0,88095.0,0.51355138]
[1766179673878,0.342,88107.0,88096.0,0.01135125]
[1766179674614,0.342,88107.0,88098.0,0.01135099]
[1766179674994,0.342,88107.0,88100.0,0.01135073]
[1766179675311,0.00568,88109.0,88102.0,0.91607048]
[1766179675833,0.54216,88128.0,88101.0,0.00568]
[1766179676016,0.54216,88128.0,88113.0,0.90472]
[1766179676017,0.342,88127.0,88113.0,0.90472]
[1766179676194,0.00568,88126.0,88113.0,0.90472]
[1766179676762,0.342,88127.0,88114.0,0.01134893]
[1766179677013,0.00568,88126.0,88114.0,0.01134893]
[1766179677321,0.00568,88125.0,88113.0,0.90472]
[1766179678114,0.34768,88125.0,88113.0,0.90472]
[1766179678313,0.342,88123.0,88109.0,0.4082]
[1766179679033,0.342,88123.0,88109.0,0.41954957]
[1766179679667,0.342,88123.0,88109.0,0.4082]
[1766179680026,0.342,88123.0,88109.0,0.41954957]
[1766179680444,0.342,88121.0,88106.0,0.00568]
[1766179680646,0.342,88119.0,88106.0,0.00568]
[1766179680848,0.19759,88118.0,88106.0,0.00568]
[1766179681047,0.00568,88120.0,88110.0,0.4082]
[1766179681668,0.00568,88120.0,88097.0,0.4082]
[1766179681865,0.00568,88120.0,88090.0,0.77456187]
[1766179681866,0.342,88104.0,88092.0,0.00568]
[1766179682072,0.01134944,88110.0,88090.0,0.01135202]
[1766179682073,0.53908,88101.0,88090.0,0.01135202]
[1766179682272,0.342,88101.0,88088.0,0.01703228]
[1766179682387,0.342,88101.0,88089.0,0.4082]
[1766179683043,0.19657,88101.0,88088.0,0.5022]
[1766179683247,0.342,88099.0,88088.0,0.00568]
[1766179683818,0.342,88099.0,88088.0,0.01703228]
[1766179684030,0.342,88099.0,88088.0,0.00568]
[1766179684571,0.53805,88100.0,88088.0,0.00568]
[1766179684786,0.53754,88098.0,88082.0,0.49652]
[1766179685004,0.342,88095.0,88083.0,0.00568]
[1766179689596,0.00568,88097.0,88087.0,0.49486]
[1766179689795,0.00568,88097.0,88089.0,0.90095]
[1766179690129,0.00568,88097.0,88089.0,0.91230215]
[1766179690775,0.00568,88097.0,88089.0,0.49486]
[1766179691369,0.00568,88097.0,88089.0,0.50621215]
[1766179692149,0.00568,88097.0,88091.0,0.91230189]
[1766179692348,0.34768,88110.0,88095.0,0.40609]
[1766179692550,0.00568,88109.0,88097.0,0.91230112]
[1766179692982,0.00568,88109.0,88097.0,0.90095]
[1766179693700,0.53906,88108.0,88095.0,0.00036071]
[1766179693904,0.00568,88109.0,88095.0,7.1e-07]
[1766179693905,0.34732,88102.0,88095.0,7.1e-07]
[1766179694072,0.19138,88103.0,88095.0,7.1e-07]
[1766179694073,0.34732,88100.0,88095.0,7.1e-07]
[1766179697414,0.53723,88114.0,88100.0,0.40609]
[1766179697594,0.34732,88111.0,88099.0,0.49486]
[1766179699366,0.34732,88111.0,88100.0,0.01135073]
[1766179699572,0.00568,88110.0,88099.0,0.50621086]
[1766179699773,0.34732,88111.0,88099.0,0.50621086]
[1766179700203,0.00568,88110.0,88099.0,0.50621086]
[1766179700557,0.34732,88111.0,88099.0,0.50621086]
[1766179700757,0.00568,88109.0,88099.0,0.50621086]
[1766179700961,0.00568,88111.0,88102.0,0.47614]
[1766179701183,0.00568,88111.0,88103.0,0.86289]
[1766179702701,0.00568,88111.0,88103.0,0.87424035]
[1766179702850,0.00568,88111.0,88103.0,0.86289]
[1766179703627,0.00568,88111.0,88101.0,0.0113506]
[1766179703938,0.00568,88111.0,88100.0,0.01135073]
[1766179704252,0.00568,88111.0,88099.0,0.01135086]
[1766179704457,0.00568,88111.0,88101.0,0.0113506]
[1766179704688,0.00568,88111.0,88100.0,0.01135073]
[1766179704890,0.00568,88111.0,88101.0,0.0113506]
[1766179705562,0.00568,88111.0,88100.0,0.01135073]
[1766179705769,0.00568,88111.0,88101.0,0.0113506]
[1766179705968,0.00568,88111.0,88101.0,0.06810351]
[1766179706402,0.34732,88110.0,88098.0,0.00568]
[1766179706600,0.34732,88109.0,88098.0,0.00568]
[1766179708190,0.34732,88109.0,88098.0,0.01703099]
[1766179708583,0.34732,88109.0,88098.0,0.00568]
[1766179708818,0.34732,88109.0,88098.0,0.01703099]
[1766179709641,0.34732,88109.0,88099.0,0.01135086]
[1766179709839,0.34732,88109.0,88098.0,0.01703099]
[1766179710603,0.34732,88109.0,88099.0,0.01135086]
[1766179710804,0.34732,88109.0,88101.0,0.0113506]
[1766179711260,0.34732,88109.0,88099.0,0.38675]
[1766179711466,0.34732,88109.0,88098.0,0.48182]
[1766179712363,0.34732,88109.0,88098.0,0.49317099]
[1766179712920,0.34732,88109.0,88099.0,0.01135086]
[1766179713143,0.34732,88109.0,88098.0,0.86857]
[1766179713358,0.34732,88109.0,88098.0,0.87992099]
[1766179713918,0.34732,88109.0,88099.0,0.01135086]
[1766179714542,0.34732,88109.0,88098.0,0.87992099]
[1766179715413,0.34732,88109.0,88099.0,0.01135086]
[1766179715891,0.34732,88109.0,88098.0,0.87992099]
[1766179716091,0.34732,88109.0,88100.0,0.01135073]
[1766179716298,0.34732,88109.0,88099.0,0.01135086]
[1766179716535,0.34732,88109.0,88098.0,0.87992099]
[1766179717507,0.34732,88109.0,88098.0,0.86857]
[1766179719613,0.34732,88109.0,88098.0,0.87992099]
[1766179720150,0.34732,88109.0,88102.0,0.01135048]
[1766179720365,0.00568,88111.0,88101.0,0.8494506]
[1766179720774,0.00568,88111.0,88101.0,0.8381]
[1766179720972,0.00568,88111.0,88102.0,0.01135048]
[1766179721339,0.00568,88111.0,88101.0,0.8494506]
[1766179722275,0.00568,88111.0,88101.0,0.8381]
[1766179723330,0.00568,88111.0,88101.0,0.8494506]
[1766179724135,0.00568,88111.0,88102.0,0.01135048]
[1766179724350,0.00568,88111.0,88101.0,0.8381]
[1766179724551,0.00568,88111.0,88101.0,0.8494506]
[1766179724987,0.00568,88111.0,88101.0,0.8381]
[1766179725151,0.353,88111.0,88101.0,0.46154]
[1766179725350,0.17644,88110.0,88098.0,0.01135099]
[1766179725555,0.34732,88109.0,88097.0,0.01135112]
[1766179725758,0.34732,88109.0,88098.0,0.01135099]
[1766179726203,0.34732,88109.0,88099.0,0.01135086]
[1766179726382,0.34732,88109.0,88101.0,0.0113506]
[1766179728100,0.34732,88109.0,88100.0,0.01135073]
[1766179728264,0.34732,88109.0,88101.0,0.0113506]
[1766179730568,0.34732,88109.0,88100.0,0.01135073]
[1766179731640,0.34732,88109.0,88101.0,0.0113506]
[1766179732001,0.34732,88109.0,88100.0,0.01135073]
[1766179732446,0.34732,88109.0,88099.0,0.37656]
[1766179733754,0.34732,88109.0,88101.0,0.0113506]
[1766179734851,0.34732,88109.0,88102.0,0.01135048]
[1766179735211,0.00568,88111.0,88107.0,0.01134983]
[1766179735554,0.00568,88110.0,88108.0,0.8381]
[1766179740651,0.00568,88110.0,88108.0,0.46154]
[1766179740900,0.00568,88110.0,88100.0,0.06810434]
[1766179740901,0.00568,88110.0,88100.0,0.46154]
[1766179741072,0.00568,88110.0,88101.0,0.37656]
[1766179742530,0.353,88108.0,88099.0,0.00568]
[1766179742757,0.353,88107.0,88097.0,0.00568]
[1766179742945,0.353,88107.0,88097.0,0.01703112]
[1766179743802,0.353,88107.0,88097.0,0.00568]
[1766179744008,0.353,88107.0,88097.0,0.01703112]
[1766179744443,0.353,88107.0,88098.0,0.01135099]
[1766179744604,0.00568,88110.0,88099.0,0.01135086]
[1766179744805,0.52718,88113.0,88098.0,0.84476]
[1766179745006,0.35868,88112.0,88098.0,0.84476]
[1766179745304,0.353,88111.0,88098.0,0.46701]
[1766179745549,0.353,88108.0,88097.0,0.00568]
[1766179745964,0.353,88108.0,88097.0,0.01703112]
[1766179746177,0.353,88108.0,88097.0,0.00568]
[1766179746377,0.353,88108.0,88097.0,0.01703112]
[1766179746583,0.353,88108.0,88097.0,0.00568]
[1766179747034,0.00568,88107.0,88097.0,0.01703112]
[1766179747203,0.00568,88107.0,88097.0,0.01135112]
[1766179747503,0.35868,88107.0,88096.0,0.01135125]
[1766179748152,0.35868,88107.0,88097.0,0.01135112]
[1766179748363,0.35868,88107.0,88097.0,0.38910112]
[1766179748782,0.35868,88107.0,88097.0,0.37775]
[1766179749925,0.35868,88107.0,88097.0,0.38910112]
[1766179750399,0.35868,88107.0,88095.0,0.01135209]
[1766179750814,0.35868,88107.0,88096.0,0.01135125]
[1766179751895,0.35868,88107.0,88097.0,0.01135112]
[1766179752300,0.01135022,88104.0,88095.0,7.1e-07]
[1766179752642,0.33597,88087.0,88071.0,0.01135447]
[1766179752979,0.33597,88086.0,88075.0,0.01703395]
[1766179753187,0.00568,88087.0,88077.0,0.37775]
[1766179755894,0.00568,88087.0,88077.0,0.3891037]
[1766179756109,0.00568,88087.0,88077.0,0.37775]
[1766179756322,0.00568,88087.0,88077.0,0.3891037]
[1766179756473,0.00568,88087.0,88077.0,0.84476]
[1766179761215,0.00568,88087.0,88077.0,0.8561137]
[1766179761636,0.00568,88087.0,88077.0,0.84476]
[1766179771232,0.00568,88087.0,88078.0,0.36926]
[1766179771431,0.00568,88087.0,88078.0,0.86711]
[1766179772416,0.00568,88087.0,88081.0,0.49785]
[1766179772765,0.00568,88087.0,88076.0,0.00568]
[1766179775058,0.00568,88087.0,88076.0,0.36623]
[1766179775261,0.00568,88087.0,88076.0,0.5029]
[1766179775403,0.00568,88087.0,88077.0,0.36055]
[1766179775602,0.00568,88087.0,88077.0,0.85777]
[1766179776010,0.00568,88087.0,88078.0,0.36055]
[1766179777500,0.00568,88087.0,88079.0,0.36055]
[1766179779223,0.00568,88087.0,87907.0,1.05425946]
[1766179779224,0.15726,88082.0,88064.0,0.36055]
[1766179779365,0.15726,88082.0,88062.0,0.49722]
[1766179779366,0.33597,88079.0,88065.0,0.5029]
[1766179779550,0.33597,88079.0,88066.0,0.36055]
[1766179779746,0.33597,88079.0,88066.0,0.85777]
[1766179781399,0.33597,88079.0,88066.0,0.86912512]
[1766179781651,0.33597,88079.0,88066.0,0.85777]
[1766179782403,0.33597,88079.0,88066.0,0.86912512]
[1766179782612,0.33597,88079.0,88066.0,0.85777]
[1766179782812,0.33597,88079.0,88066.0,0.86912512]
[1766179783008,0.33597,88079.0,88066.0,0.85777]
[1766179783974,0.33597,88079.0,88066.0,0.86912512]
[1766179784331,0.33597,88079.0,88067.0,0.01135499]
[1766179784936,0.33597,88079.0,88066.0,0.85777]
[1766179785315,0.33597,88079.0,88067.0,0.00568]
[1766179787151,0.33597,88079.0,88066.0,0.85777]
[1766179787357,0.33597,88079.0,88068.0,0.00568]
[1766179789175,0.00568,88081.0,88070.0,0.0113546]
[1766179789352,0.00568,88081.0,88070.0,0.8691246]
[1766179789984,0.00568,88081.0,88071.0,0.01135447]
[1766179790497,0.00568,88081.0,88070.0,0.8691246]
[1766179790652,0.00568,88081.0,88070.0,0.85777]
[1766179790842,0.00568,88081.0,88070.0,0.8691246]
[1766179791037,0.00568,88081.0,88070.0,0.85777]
[1766179791466,0.00568,88081.0,88070.0,0.36055]
[1766179794629,0.33597,88080.0,88069.0,0.5029]